[Event "*** Qualifier 4: Titled Tuesday 3|2 Blitz"]
[Site "Chess.com"]
[Date "2017.04.25"]
[Round "4"]
[White "indfraeng"]
[Black "DanielNaroditsky"]
[Result "0-1"]
[WhiteElo "1784"]
[BlackElo "2698"]
[TimeControl "180+2"]
[EndTime "13:43:51 PDT"]
[Termination "DanielNaroditsky won by checkmate"]

1. d4 {[%clk 0:03:02]} 1... Nf6 {[%clk 0:03:01.1]} 2. c4 {[%clk 0:03:01.5]} 2...
g6 {[%clk 0:03:02.6]} 3. Nc3 {[%clk 0:03:00.5]} 3... d5 {[%clk 0:03:04.5]} 4.
Bg5 {[%clk 0:02:55.2]} 4... Bg7 {[%clk 0:03:05.2]} 5. Nf3 {[%clk 0:02:54.8]}
5... Ne4 {[%clk 0:03:05.5]} 6. Bf4 {[%clk 0:02:54.4]} 6... Nxc3 {[%clk
0:03:05.8]} 7. bxc3 {[%clk 0:02:54.3]} 7... dxc4 {[%clk 0:03:07.7]} 8. e3 {[%clk
0:02:54.3]} 8... Be6 {[%clk 0:03:08.3]} 9. Qa4+ {[%clk 0:02:48.3]} 9... c6
{[%clk 0:03:07.2]} 10. Ng5 {[%clk 0:02:38.8]} 10... Bd5 {[%clk 0:03:05.7]} 11.
e4 {[%clk 0:02:37.7]} 11... b5 {[%clk 0:03:04]} 12. Qb4 {[%clk 0:02:33.8]} 12...
a5 {[%clk 0:02:59.6]} 13. Qb2 {[%clk 0:02:20.6]} 13... e5 {[%clk 0:03:00.8]} 14.
dxe5 {[%clk 0:02:10.9]} 14... Be6 {[%clk 0:03:02]} 15. Nxe6 {[%clk 0:02:10]}
15... fxe6 {[%clk 0:03:03.9]} 16. Qd2 {[%clk 0:02:10.3]} 16... Qxd2+ {[%clk
0:03:02.6]} 17. Kxd2 {[%clk 0:02:10.8]} 17... Nd7 {[%clk 0:03:04.2]} 18. Kc2
{[%clk 0:01:52.8]} 18... O-O {[%clk 0:03:04.7]} 19. Bg3 {[%clk 0:01:48.7]} 19...
Bxe5 {[%clk 0:03:05.8]} 20. Rd1 {[%clk 0:01:43.8]} 20... Bxg3 {[%clk 0:03:06.7]}
21. fxg3 {[%clk 0:01:44.3]} 21... Nc5 {[%clk 0:03:07.1]} 22. Rd6 {[%clk
0:01:37.1]} 22... Rf2+ {[%clk 0:03:05.4]} 23. Kd1 {[%clk 0:01:34.6]} 23... Nxe4
{[%clk 0:03:06.6]} 24. Rxe6 {[%clk 0:01:34]} 24... Nxc3+ {[%clk 0:03:07.5]} 25.
Ke1 {[%clk 0:01:34.6]} 25... Rxa2 {[%clk 0:03:08.8]} 26. Rxc6 {[%clk 0:01:35.2]}
26... Re8+ {[%clk 0:03:10]} 27. Be2 {[%clk 0:01:33.8]} 27... Rexe2+ {[%clk
0:03:11]} 28. Kf1 {[%clk 0:01:29]} 28... Ra1# {[%clk 0:03:12.9]} 0-1

[Event "*** Qualifier 4: Titled Tuesday 3|2 Blitz"]
[Site "Chess.com"]
[Date "2017.04.25"]
[Round "4"]
[White "maciek_92"]
[Black "Oneofmyturns"]
[Result "1-0"]
[WhiteElo "2522"]
[BlackElo "2504"]
[TimeControl "180+2"]
[EndTime "13:45:02 PDT"]
[Termination "maciek_92 won by resignation"]

1. c4 {[%clk 0:03:02]} 1... e6 {[%clk 0:03:00.3]} 2. Nc3 {[%clk 0:03:01]} 2...
d5 {[%clk 0:03:02.2]} 3. d4 {[%clk 0:03:02.1]} 3... Nf6 {[%clk 0:03:02.9]} 4.
cxd5 {[%clk 0:03:00.9]} 4... exd5 {[%clk 0:03:03.8]} 5. Bg5 {[%clk 0:03:00.5]}
5... a6 {[%clk 0:03:05]} 6. e3 {[%clk 0:02:59.7]} 6... Be6 {[%clk 0:03:05]} 7.
Bd3 {[%clk 0:03:00.6]} 7... Nbd7 {[%clk 0:03:05.5]} 8. Nge2 {[%clk 0:02:59.6]}
8... h6 {[%clk 0:03:06.9]} 9. Bh4 {[%clk 0:03:00]} 9... g5 {[%clk 0:03:08.3]}
10. Bg3 {[%clk 0:03:00.8]} 10... Nh5 {[%clk 0:03:09.8]} 11. Qc2 {[%clk
0:03:00.8]} 11... Bg7 {[%clk 0:03:02.5]} 12. h3 {[%clk 0:02:48.7]} 12... Nxg3
{[%clk 0:03:02.5]} 13. Nxg3 {[%clk 0:02:50.6]} 13... c5 {[%clk 0:02:43.1]} 14.
Nh5 {[%clk 0:02:46.9]} 14... Bf8 {[%clk 0:02:36.9]} 15. Bf5 {[%clk 0:02:44.4]}
15... Qe7 {[%clk 0:02:11.3]} 16. dxc5 {[%clk 0:02:33.7]} 16... Nxc5 {[%clk
0:02:01]} 17. Rd1 {[%clk 0:02:33.4]} 17... Rd8 {[%clk 0:01:48.8]} 18. O-O {[%clk
0:02:33.4]} 18... Ne4 {[%clk 0:00:59.4]} 19. Bxe4 {[%clk 0:02:28.3]} 19... dxe4
{[%clk 0:01:00.6]} 20. Nxe4 {[%clk 0:02:29.7]} 20... f5 {[%clk 0:01:02.2]} 21.
Rxd8+ {[%clk 0:02:24.4]} 21... Qxd8 {[%clk 0:00:58]} 22. Rd1 {[%clk 0:02:22.7]}
22... Qb6 {[%clk 0:00:53.5]} 23. Qc3 {[%clk 0:02:21.3]} 1-0

[Event "*** Qualifier 4: Titled Tuesday 3|2 Blitz"]
[Site "Chess.com"]
[Date "2017.04.25"]
[Round "4"]
[White "Robin-Side"]
[Black "Ar4uha"]
[Result "0-1"]
[WhiteElo "2316"]
[BlackElo "2463"]
[TimeControl "180+2"]
[EndTime "13:46:48 PDT"]
[Termination "Ar4uha won by checkmate"]

1. e4 {[%clk 0:03:02]} 1... d5 {[%clk 0:02:59.4]} 2. exd5 {[%clk 0:03:02.5]}
2... Nf6 {[%clk 0:03:01]} 3. Bb5+ {[%clk 0:03:02.3]} 3... Bd7 {[%clk 0:03:01.5]}
4. Bc4 {[%clk 0:03:03.4]} 4... Bg4 {[%clk 0:03:02.6]} 5. f3 {[%clk 0:03:04.4]}
5... Bc8 {[%clk 0:03:04.2]} 6. Nc3 {[%clk 0:03:04.2]} 6... Nbd7 {[%clk
0:03:05.8]} 7. Qe2 {[%clk 0:02:53.1]} 7... Nb6 {[%clk 0:03:07.1]} 8. Qd3 {[%clk
0:02:50.4]} 8... g6 {[%clk 0:03:02.8]} 9. Nge2 {[%clk 0:02:44.4]} 9... Bf5
{[%clk 0:03:00]} 10. Ne4 {[%clk 0:02:04.2]} 10... Bg7 {[%clk 0:02:31.2]} 11.
Bb5+ {[%clk 0:01:39.6]} 11... Bd7 {[%clk 0:02:20.7]} 12. Bxd7+ {[%clk
0:01:29.4]} 12... Qxd7 {[%clk 0:02:22.6]} 13. c4 {[%clk 0:01:25.5]} 13... c6
{[%clk 0:02:17.4]} 14. Nc5 {[%clk 0:01:05.4]} 14... Qc7 {[%clk 0:02:17.7]} 15.
dxc6 {[%clk 0:00:57.7]} 15... Qxc6 {[%clk 0:02:19.6]} 16. b4 {[%clk 0:00:17.7]}
16... Nfd7 {[%clk 0:02:08.7]} 17. Rb1 {[%clk 0:00:04.3]} 17... Nxc5 {[%clk
0:02:09]} 18. bxc5 {[%clk 0:00:05.4]} 18... Qxc5 {[%clk 0:02:10.9]} 19. Bb2
{[%clk 0:00:06.1]} 19... Rd8 {[%clk 0:02:03.5]} 20. Qb3 {[%clk 0:00:03.9]} 20...
Bxb2 {[%clk 0:02:01.3]} 21. Qxb2 {[%clk 0:00:04.1]} 21... O-O {[%clk 0:02:01.1]}
22. Qc2 {[%clk 0:00:02.5]} 22... Nxc4 {[%clk 0:01:56.2]} 23. Rc1 {[%clk
0:00:02.4]} 23... b5 {[%clk 0:01:56.6]} 24. d3 {[%clk 0:00:02.9]} 24... Qb4+
{[%clk 0:01:58.1]} 25. Kf2 {[%clk 0:00:03.4]} 25... Ne5 {[%clk 0:01:58.3]} 26.
Qc3 {[%clk 0:00:03.4]} 26... Nxd3+ {[%clk 0:01:59]} 27. Kg3 {[%clk 0:00:03.9]}
27... Qd6+ {[%clk 0:01:59.3]} 28. f4 {[%clk 0:00:04.2]} 28... Nxc1 {[%clk
0:01:58]} 29. Nxc1 {[%clk 0:00:04.5]} 29... Rc8 {[%clk 0:01:56.7]} 30. Qb2
{[%clk 0:00:05.6]} 30... g5 {[%clk 0:01:48.7]} 31. h4 {[%clk 0:00:04.9]} 31...
Qxf4+ {[%clk 0:01:49]} 32. Kh3 {[%clk 0:00:04.3]} 32... Qxh4# {[%clk 0:01:50.9]}
0-1

[Event "*** Qualifier 4: Titled Tuesday 3|2 Blitz"]
[Site "Chess.com"]
[Date "2017.04.25"]
[Round "4"]
[White "saraswathii"]
[Black "bugsbunny444"]
[Result "1-0"]
[WhiteElo "2229"]
[BlackElo "2354"]
[TimeControl "180+2"]
[EndTime "13:47:21 PDT"]
[Termination "saraswathii won by resignation"]

1. e4 {[%clk 0:03:02]} 1... e6 {[%clk 0:03:01.1]} 2. d3 {[%clk 0:03:01]} 2... d5
{[%clk 0:03:02.1]} 3. Nd2 {[%clk 0:03:01.1]} 3... c5 {[%clk 0:03:03.7]} 4. Ngf3
{[%clk 0:03:01.6]} 4... Nc6 {[%clk 0:03:05.1]} 5. g3 {[%clk 0:03:02.4]} 5... g6
{[%clk 0:03:06.5]} 6. Bg2 {[%clk 0:03:03.6]} 6... Bg7 {[%clk 0:03:08]} 7. O-O
{[%clk 0:03:05.1]} 7... Nge7 {[%clk 0:03:09.6]} 8. Qe2 {[%clk 0:03:06.3]} 8...
O-O {[%clk 0:03:10.7]} 9. c3 {[%clk 0:03:06.2]} 9... b6 {[%clk 0:03:12]} 10. h4
{[%clk 0:03:06]} 10... h6 {[%clk 0:03:11.5]} 11. e5 {[%clk 0:03:05.1]} 11... a5
{[%clk 0:03:09]} 12. Re1 {[%clk 0:03:05.8]} 12... a4 {[%clk 0:03:09]} 13. a3
{[%clk 0:03:06.2]} 13... Kh7 {[%clk 0:03:08.6]} 14. Nf1 {[%clk 0:03:06.9]} 14...
Ra7 {[%clk 0:03:05.6]} 15. Bf4 {[%clk 0:03:06.2]} 15... Bb7 {[%clk 0:03:04.9]}
16. Ne3 {[%clk 0:03:02.4]} 16... Na5 {[%clk 0:02:51.7]} 17. Rad1 {[%clk
0:02:51.3]} 17... d4 {[%clk 0:02:37.3]} 18. cxd4 {[%clk 0:02:48.2]} 18... cxd4
{[%clk 0:02:38.1]} 19. Ng4 {[%clk 0:02:39.4]} 19... Nf5 {[%clk 0:02:36.1]} 20.
Rc1 {[%clk 0:02:35.3]} 20... Nb3 {[%clk 0:02:34.3]} 21. Rc2 {[%clk 0:02:32]}
21... Qa8 {[%clk 0:02:10.2]} 22. Nf6+ {[%clk 0:02:27]} 22... Bxf6 {[%clk
0:02:07.2]} 23. exf6 {[%clk 0:02:28.9]} 23... e5 {[%clk 0:01:23.6]} 24. Bxe5
{[%clk 0:02:00.7]} 24... Re8 {[%clk 0:01:24.4]} 25. g4 {[%clk 0:02:01.4]} 25...
Nd6 {[%clk 0:00:26.4]} 26. Rc7 {[%clk 0:01:44.6]} 26... Ra5 {[%clk 0:00:08]} 27.
Bxd6 {[%clk 0:01:24.3]} 27... Rxe2 {[%clk 0:00:08]} 28. Rxf7+ {[%clk 0:01:23.9]}
28... Kh8 {[%clk 0:00:09.3]} 29. Rxe2 {[%clk 0:01:19.4]} 29... Bxf3 {[%clk
0:00:10.1]} 30. Ree7 {[%clk 0:01:19.2]} 1-0

[Event "*** Qualifier 4: Titled Tuesday 3|2 Blitz"]
[Site "Chess.com"]
[Date "2017.04.25"]
[Round "4"]
[White "scrapnel"]
[Black "hansen"]
[Result "0-1"]
[WhiteElo "2473"]
[BlackElo "2654"]
[TimeControl "180+2"]
[EndTime "13:47:22 PDT"]
[Termination "hansen won on time"]

1. Nf3 {[%clk 0:03:02]} 1... Nf6 {[%clk 0:02:55.3]} 2. c4 {[%clk 0:03:02.5]}
2... b6 {[%clk 0:02:50.3]} 3. g3 {[%clk 0:03:00.7]} 3... Bb7 {[%clk 0:02:50.8]}
4. Bg2 {[%clk 0:03:02.2]} 4... g6 {[%clk 0:02:51.7]} 5. O-O {[%clk 0:03:01.9]}
5... Bg7 {[%clk 0:02:53.3]} 6. d3 {[%clk 0:03:01.3]} 6... O-O {[%clk 0:02:53.3]}
7. e4 {[%clk 0:03:01.2]} 7... c5 {[%clk 0:02:35.9]} 8. e5 {[%clk 0:02:45.4]}
8... Ne8 {[%clk 0:02:13.9]} 9. Re1 {[%clk 0:02:45.7]} 9... d6 {[%clk 0:02:07]}
10. e6 {[%clk 0:02:33.8]} 10... f5 {[%clk 0:02:08]} 11. Nc3 {[%clk 0:02:31.1]}
11... Nc7 {[%clk 0:02:08.7]} 12. d4 {[%clk 0:02:13.8]} 12... cxd4 {[%clk
0:01:22.8]} 13. Nxd4 {[%clk 0:02:13.1]} 13... Bxg2 {[%clk 0:01:24.7]} 14. Kxg2
{[%clk 0:02:13.8]} 14... Qc8 {[%clk 0:01:26]} 15. Nd5 {[%clk 0:01:58.7]} 15...
Nxd5 {[%clk 0:01:26]} 16. cxd5 {[%clk 0:01:59.1]} 16... Qc4 {[%clk 0:01:27.4]}
17. Nf3 {[%clk 0:01:43.6]} 17... Na6 {[%clk 0:01:17.9]} 18. b3 {[%clk
0:01:32.6]} 18... Qb5 {[%clk 0:01:10.4]} 19. a4 {[%clk 0:01:28.8]} 19... Qa5
{[%clk 0:01:09.2]} 20. Ra2 {[%clk 0:01:06.4]} 20... Nc7 {[%clk 0:00:59.4]} 21.
Rd2 {[%clk 0:00:29.3]} 21... Bc3 {[%clk 0:00:56.8]} 22. Rd3 {[%clk 0:00:26.6]}
22... Bxe1 {[%clk 0:00:55.1]} 23. Nxe1 {[%clk 0:00:27.7]} 23... f4 {[%clk
0:00:44.2]} 24. Bb2 {[%clk 0:00:17.2]} 24... Rf5 {[%clk 0:00:41.3]} 0-1

[Event "*** Qualifier 4: Titled Tuesday 3|2 Blitz"]
[Site "Chess.com"]
[Date "2017.04.25"]
[Round "4"]
[White "TenisMaster"]
[Black "Osensei"]
[Result "1-0"]
[WhiteElo "2673"]
[BlackElo "1829"]
[TimeControl "180+2"]
[EndTime "13:47:34 PDT"]
[Termination "TenisMaster won by resignation"]

1. d4 {[%clk 0:03:02]} 1... Nf6 {[%clk 0:03:00.3]} 2. c4 {[%clk 0:03:01.4]} 2...
g6 {[%clk 0:03:01.7]} 3. Nf3 {[%clk 0:03:00.4]} 3... Bg7 {[%clk 0:03:02.5]} 4.
g3 {[%clk 0:03:00.1]} 4... O-O {[%clk 0:03:02.5]} 5. Bg2 {[%clk 0:03:00.9]} 5...
d6 {[%clk 0:03:03.5]} 6. O-O {[%clk 0:03:01.8]} 6... Nc6 {[%clk 0:03:03.9]} 7.
Nc3 {[%clk 0:03:00.7]} 7... a6 {[%clk 0:02:28.3]} 8. e4 {[%clk 0:02:57.3]} 8...
e5 {[%clk 0:02:26.6]} 9. h3 {[%clk 0:02:30.4]} 9... Rb8 {[%clk 0:02:06.8]} 10.
Be3 {[%clk 0:02:20.6]} 10... b5 {[%clk 0:01:56.1]} 11. cxb5 {[%clk 0:02:20.7]}
11... axb5 {[%clk 0:01:56.7]} 12. d5 {[%clk 0:02:21.3]} 12... Na5 {[%clk
0:01:42.1]} 13. b4 {[%clk 0:02:13.4]} 13... Nc4 {[%clk 0:01:41.1]} 14. Bc1
{[%clk 0:02:13.6]} 14... Ne8 {[%clk 0:01:28.9]} 15. Nd2 {[%clk 0:02:14]} 15...
Nxd2 {[%clk 0:01:15.7]} 16. Bxd2 {[%clk 0:02:14]} 16... f5 {[%clk 0:01:17]} 17.
Qe2 {[%clk 0:01:54.2]} 17... Nf6 {[%clk 0:01:16.7]} 18. exf5 {[%clk 0:01:52.3]}
18... gxf5 {[%clk 0:01:16.6]} 19. Nxb5 {[%clk 0:01:53.3]} 19... Ba6 {[%clk
0:01:16.9]} 20. a4 {[%clk 0:01:53.8]} 20... Qd7 {[%clk 0:01:16.4]} 21. Rac1
{[%clk 0:01:52.4]} 21... e4 {[%clk 0:01:08.6]} 22. Bg5 {[%clk 0:01:12.3]} 22...
Nxd5 {[%clk 0:00:58.8]} 23. Qc4 {[%clk 0:01:11.8]} 23... c6 {[%clk 0:00:56.6]}
24. Qxc6 {[%clk 0:01:08.8]} 24... Bxb5 {[%clk 0:00:40.2]} 25. Qxd5+ {[%clk
0:01:07.6]} 25... Kh8 {[%clk 0:00:37]} 26. axb5 {[%clk 0:01:07.5]} 26... Rxb5
{[%clk 0:00:36.9]} 27. Qc6 {[%clk 0:01:01.8]} 27... Qxc6 {[%clk 0:00:33.3]} 28.
Rxc6 {[%clk 0:01:03.3]} 28... d5 {[%clk 0:00:33.9]} 29. Be7 {[%clk 0:01:01.2]}
29... Re8 {[%clk 0:00:32.7]} 30. Bc5 {[%clk 0:01:02]} 30... d4 {[%clk
0:00:32.7]} 31. Rd6 {[%clk 0:01:00.5]} 31... d3 {[%clk 0:00:30.1]} 32. Rd5
{[%clk 0:01:01.7]} 32... Bc3 {[%clk 0:00:22.4]} 33. Rxf5 {[%clk 0:00:58.3]}
33... Bxb4 {[%clk 0:00:21.4]} 34. Bd4+ {[%clk 0:00:58.6]} 34... Kg8 {[%clk
0:00:21]} 35. Rxb5 {[%clk 0:00:59.3]} 1-0

[Event "*** Qualifier 4: Titled Tuesday 3|2 Blitz"]
[Site "Chess.com"]
[Date "2017.04.25"]
[Round "4"]
[White "johnathan113"]
[Black "theprosecution1"]
[Result "0-1"]
[WhiteElo "2458"]
[BlackElo "2607"]
[TimeControl "180+2"]
[EndTime "13:47:35 PDT"]
[Termination "theprosecution1 won by resignation"]

1. e4 {[%clk 0:02:59.1]} 1... c5 {[%clk 0:03:00.6]} 2. Nf3 {[%clk 0:03:00.2]}
2... d6 {[%clk 0:02:58.9]} 3. d4 {[%clk 0:03:00.7]} 3... cxd4 {[%clk 0:03:00.8]}
4. Nxd4 {[%clk 0:03:01.8]} 4... Nf6 {[%clk 0:03:02.1]} 5. Nc3 {[%clk 0:03:03.2]}
5... g6 {[%clk 0:03:03.7]} 6. f3 {[%clk 0:02:56.1]} 6... Bg7 {[%clk 0:03:04.5]}
7. Be3 {[%clk 0:02:58]} 7... Nc6 {[%clk 0:03:05.1]} 8. Bc4 {[%clk 0:02:59]} 8...
O-O {[%clk 0:03:06.4]} 9. Qe2 {[%clk 0:02:58.7]} 9... Bd7 {[%clk 0:03:07.7]} 10.
O-O-O {[%clk 0:02:59.3]} 10... Rc8 {[%clk 0:03:07.2]} 11. Nxc6 {[%clk
0:02:48.6]} 11... Rxc6 {[%clk 0:03:03.9]} 12. Bb3 {[%clk 0:02:42.8]} 12... Rxc3
{[%clk 0:02:59.7]} 13. bxc3 {[%clk 0:02:43.5]} 13... Qa5 {[%clk 0:03:01.3]} 14.
Bd4 {[%clk 0:02:40.1]} 14... e5 {[%clk 0:03:01.3]} 15. Be3 {[%clk 0:02:38.1]}
15... Qxc3 {[%clk 0:03:01.6]} 16. Kb1 {[%clk 0:02:38.5]} 16... d5 {[%clk
0:02:54.1]} 17. Bd2 {[%clk 0:02:02.9]} 17... Qc5 {[%clk 0:02:49.4]} 18. Bg5
{[%clk 0:01:46.1]} 18... Bb5 {[%clk 0:02:46.9]} 19. Qe3 {[%clk 0:01:34.8]} 19...
d4 {[%clk 0:02:44.1]} 20. Qd2 {[%clk 0:01:34.3]} 20... Rc8 {[%clk 0:02:45.5]}
21. h4 {[%clk 0:01:25.2]} 21... b6 {[%clk 0:02:22]} 22. Rc1 {[%clk 0:01:24.6]}
22... a5 {[%clk 0:02:22]} 23. a4 {[%clk 0:01:19]} 23... Be8 {[%clk 0:02:14]} 24.
h5 {[%clk 0:01:10.5]} 24... Nxh5 {[%clk 0:01:41]} 25. g4 {[%clk 0:01:09]} 25...
Nf6 {[%clk 0:01:41]} 26. Qh2 {[%clk 0:01:00.7]} 26... b5 {[%clk 0:01:35]} 27.
Bxf6 {[%clk 0:00:39.2]} 27... Bxf6 {[%clk 0:01:36.9]} 28. Qxh7+ {[%clk
0:00:39.7]} 28... Kf8 {[%clk 0:01:38.4]} 29. axb5 {[%clk 0:00:32.7]} 29... a4
{[%clk 0:01:25.9]} 30. Bxa4 {[%clk 0:00:32.2]} 30... Qa3 {[%clk 0:01:26.9]} 31.
g5 {[%clk 0:00:17]} 31... Bg7 {[%clk 0:01:23.7]} 32. Qh3 {[%clk 0:00:13.8]}
32... Ra8 {[%clk 0:01:19.1]} 33. f4 {[%clk 0:00:14.8]} 33... Qxa4 {[%clk
0:01:17.1]} 0-1

[Event "*** Qualifier 4: Titled Tuesday 3|2 Blitz"]
[Site "Chess.com"]
[Date "2017.04.25"]
[Round "4"]
[White "Gabix_94"]
[Black "PelinGorki"]
[Result "1-0"]
[WhiteElo "2436"]
[BlackElo "2325"]
[TimeControl "180+2"]
[EndTime "13:47:35 PDT"]
[Termination "Gabix_94 won by checkmate"]

1. e4 {[%clk 0:03:02]} 1... d6 {[%clk 0:03:01.1]} 2. d4 {[%clk 0:03:02.7]} 2...
Nf6 {[%clk 0:03:02.5]} 3. Nc3 {[%clk 0:03:04.6]} 3... c6 {[%clk 0:03:03.9]} 4.
f4 {[%clk 0:03:04.2]} 4... Qa5 {[%clk 0:03:05]} 5. Nf3 {[%clk 0:02:57.3]} 5...
Nxe4 {[%clk 0:03:05.8]} 6. Bd3 {[%clk 0:02:54.6]} 6... Nxc3 {[%clk 0:03:05]} 7.
bxc3 {[%clk 0:02:56.5]} 7... Qxc3+ {[%clk 0:03:04.3]} 8. Bd2 {[%clk 0:02:57.3]}
8... Qa3 {[%clk 0:03:05.6]} 9. O-O {[%clk 0:02:58]} 9... g6 {[%clk 0:03:05.6]}
10. f5 {[%clk 0:02:58.2]} 10... gxf5 {[%clk 0:03:03.3]} 11. Ng5 {[%clk
0:02:57.6]} 11... h6 {[%clk 0:02:59.2]} 12. Qh5 {[%clk 0:02:56.6]} 12... hxg5
{[%clk 0:02:58.8]} 13. Qxh8 {[%clk 0:02:56.3]} 13... f4 {[%clk 0:02:49.3]} 14.
Rae1 {[%clk 0:02:55.5]} 14... Nd7 {[%clk 0:02:46.5]} 15. Qh5 {[%clk 0:02:49.2]}
15... Nf6 {[%clk 0:02:39.6]} 16. Qxg5 {[%clk 0:02:49.2]} 16... Be6 {[%clk
0:02:40.5]} 17. Bxf4 {[%clk 0:02:39.2]} 17... O-O-O {[%clk 0:02:38.8]} 18. Bf5
{[%clk 0:02:37.3]} 18... Qxa2 {[%clk 0:02:11.6]} 19. Bxe6+ {[%clk 0:02:30.6]}
19... fxe6 {[%clk 0:02:13.5]} 20. Ra1 {[%clk 0:02:28.7]} 20... Qxc2 {[%clk
0:02:03.2]} 21. Rxa7 {[%clk 0:02:27.1]} 21... Qd3 {[%clk 0:01:17.8]} 22. Qa5
{[%clk 0:02:17.2]} 22... Qxd4+ {[%clk 0:00:59.8]} 23. Kh1 {[%clk 0:02:16.9]}
23... Kd7 {[%clk 0:00:57.3]} 24. Rxb7+ {[%clk 0:02:13]} 24... Ke8 {[%clk
0:00:54.2]} 25. Qe1 {[%clk 0:02:09.9]} 25... Bg7 {[%clk 0:00:48.4]} 26. Qg3
{[%clk 0:02:08.4]} 26... Kf8 {[%clk 0:00:30.5]} 27. Rxe7 {[%clk 0:02:00.3]}
27... Nh5 {[%clk 0:00:27.1]} 28. Qh4 {[%clk 0:01:35.2]} 28... Bf6 {[%clk
0:00:26.9]} 29. Qxh5 {[%clk 0:01:30.9]} 29... Kxe7 {[%clk 0:00:26.1]} 30. Qh7+
{[%clk 0:01:29.9]} 30... Ke8 {[%clk 0:00:24.4]} 31. Bg5 {[%clk 0:01:25.8]} 31...
Qc4 {[%clk 0:00:17.1]} 32. Rxf6 {[%clk 0:01:24.4]} 32... Rd7 {[%clk 0:00:05.8]}
33. Qg8+ {[%clk 0:01:23.6]} 33... Ke7 {[%clk 0:00:07.2]} 34. Rf1# {[%clk
0:01:23.4]} 1-0

[Event "*** Qualifier 4: Titled Tuesday 3|2 Blitz"]
[Site "Chess.com"]
[Date "2017.04.25"]
[Round "4"]
[White "Astaneh"]
[Black "Abrito99"]
[Result "1-0"]
[WhiteElo "2454"]
[BlackElo "2276"]
[TimeControl "180+2"]
[EndTime "13:48:06 PDT"]
[Termination "Astaneh won by resignation"]

1. e4 {[%clk 0:03:02]} 1... c5 {[%clk 0:02:59.7]} 2. Nc3 {[%clk 0:03:03.4]} 2...
Nc6 {[%clk 0:02:59.8]} 3. b3 {[%clk 0:03:05]} 3... e6 {[%clk 0:02:55.7]} 4. Bb2
{[%clk 0:03:06.9]} 4... b6 {[%clk 0:02:50.2]} 5. g3 {[%clk 0:03:07.6]} 5... Bb7
{[%clk 0:02:51.6]} 6. Bg2 {[%clk 0:03:09.2]} 6... a6 {[%clk 0:02:50.8]} 7. Nge2
{[%clk 0:03:10.8]} 7... Qc7 {[%clk 0:02:51.8]} 8. O-O {[%clk 0:03:12.4]} 8... d6
{[%clk 0:02:52.4]} 9. f4 {[%clk 0:03:11.8]} 9... Nf6 {[%clk 0:02:53.5]} 10. f5
{[%clk 0:03:11.5]} 10... e5 {[%clk 0:02:52.6]} 11. h3 {[%clk 0:03:12.6]} 11...
Be7 {[%clk 0:02:52.1]} 12. g4 {[%clk 0:03:13.7]} 12... h6 {[%clk 0:02:50.3]} 13.
Ng3 {[%clk 0:03:14.9]} 13... Nd4 {[%clk 0:02:49.9]} 14. d3 {[%clk 0:03:15.2]}
14... b5 {[%clk 0:02:43]} 15. Nb1 {[%clk 0:03:14.6]} 15... b4 {[%clk 0:02:43.6]}
16. Nd2 {[%clk 0:03:15.5]} 16... Nh7 {[%clk 0:02:41.8]} 17. Nh5 {[%clk
0:03:15.5]} 17... Kf8 {[%clk 0:02:40.1]} 18. Nc4 {[%clk 0:03:16.9]} 18... Bg5
{[%clk 0:02:27.6]} 19. a3 {[%clk 0:03:17.2]} 19... a5 {[%clk 0:02:20.7]} 20.
Bxd4 {[%clk 0:03:17]} 20... cxd4 {[%clk 0:01:38.2]} 21. axb4 {[%clk 0:03:17.6]}
21... axb4 {[%clk 0:01:39.3]} 22. Rxa8+ {[%clk 0:03:19.1]} 22... Bxa8 {[%clk
0:01:40]} 23. Qa1 {[%clk 0:03:18]} 23... Bc6 {[%clk 0:01:37.4]} 24. Qa5 {[%clk
0:02:39.1]} 24... Qxa5 {[%clk 0:00:55.2]} 25. Nxa5 {[%clk 0:02:40.3]} 25... Bd7
{[%clk 0:00:56.6]} 26. Nc4 {[%clk 0:02:32.9]} 26... Ke7 {[%clk 0:00:56.4]} 27.
Nxg7 {[%clk 0:02:33.8]} 27... Nf6 {[%clk 0:00:57.5]} 28. Ra1 {[%clk 0:02:26.6]}
28... Rg8 {[%clk 0:00:58.3]} 29. Nh5 {[%clk 0:02:28.2]} 29... Nxh5 {[%clk
0:00:58.8]} 30. gxh5 {[%clk 0:02:30.1]} 30... Bb5 {[%clk 0:00:39]} 31. Ra7+
{[%clk 0:02:28.7]} 31... Kf6 {[%clk 0:00:26.8]} 32. Nxd6 {[%clk 0:02:29.7]}
32... Be3+ {[%clk 0:00:27.9]} 33. Kf1 {[%clk 0:02:30.6]} 33... Be8 {[%clk
0:00:27.1]} 34. Rb7 {[%clk 0:01:48.8]} 34... Kg5 {[%clk 0:00:21]} 35. Rb8 {[%clk
0:01:37.7]} 35... Kf4 {[%clk 0:00:08.5]} 36. Rxe8 {[%clk 0:01:34.2]} 36... Rg3
{[%clk 0:00:10]} 37. Nxf7 {[%clk 0:01:18.3]} 37... Bd2 {[%clk 0:00:11]} 38. Nxe5
{[%clk 0:01:13.7]} 38... Re3 {[%clk 0:00:12]} 39. Nf3 {[%clk 0:01:10]} 39... Bc3
{[%clk 0:00:12.2]} 40. f6 {[%clk 0:01:07.6]} 1-0